[Event "Czech Open Rapid G1 2024"]
[Site "Pardubice"]
[Date "2024.07.18"]
[Round "9.28"]
[White "Chaika, Vitalii"]
[Black "Brotanek, Tomas"]
[Result "1-0"]
[Annotator "RC"]
[ECO "D00"]
[WhiteElo "2111"]
[BlackElo "1674"]
[PlyCount "49"]
[EventDate "2024.07.16"]
[EventType "swiss"]
[EventCountry "CZE"]
[SourceTitle "playchess.com"]
[Source "ChessBase"]
[SourceQuality "1"]
[TimeControl "1200+10"]

1. d4 {[%emt 0:00:04]} d5 {[%emt 0:00:04]} 2. Bf4 {[%emt 0:00:02]} h5 {[%emt 0:00:06]} 3. e3 {[%emt 0:00:30]} e5 {[%emt 0:00:01]} 4. Bxe5 {[%emt 0:00:34]} f6 {[%emt 0:00:01]} 5. Bf4 {[%emt 0:02:23]} g5 {[%emt 0:00:02]} 6. Be2 {[%emt 0:00:09]} gxf4 {[%emt 0:01:19]} 7. Bxh5+ {[%emt 0:00:03]} Ke7 {[%emt 0:00:29]} 8. exf4 {[%emt 0:00:37]} Qd6 {[%emt 0:00:52]} 9. Qe2+ {[%emt 0:00:59]} Qe6 {[%emt 0:00:58]} 10. Bf3 {[%emt 0:00:16]} c6 {[%emt 0:00:34]} 11. Nc3 {[%emt 0:00:25]} Nh6 {[%emt 0:00:30]} 12. g3 {[%emt 0:00:43]} Na6 {[%emt 0:00:37]} 13. O-O-O {[%emt 0:00:11]} Qxe2 {[%emt 0:01:02]} 14. Ngxe2 {[%emt 0:03:25]} Bg4 {[%emt 0:00:58]} 15. Bg2 {[%emt 0:00:26]} Kd7 {[%emt 0:01:35]} 16. Rde1 {[%emt 0:00:13]} Bd6 {[%emt 0:00:03]} 17. h3 {[%emt 0:01:05]} Bxe2 {[%emt 0:00:08]} 18. Rxe2 {[%emt 0:00:15]} Rae8 {[%emt 0:00:45]} 19. Rxe8 Rxe8 {[%emt 0:00:10]} 20. a3 {[%emt 0:00:55]} Nf5 {[%emt 0:00:21]} 21. Rd1 {[%emt 0:00:19]} Nc7 {[%emt 0:00:00]} 22. h4 {[%emt 0:00:23]} b5 {[%emt 0:01:02]} 23. Bh3 {[%emt 0:00:15]} Ke6 {[%emt 0:00:25]} 24. Re1+ {[%emt 0:00:06]} Be5 {[%emt 0:00:01]} 25. fxe5 {[%emt 0:00:15]} 1-0

[Event "Czech Open Rapid G1 2024"]
[Site "Pardubice"]
[Date "2024.07.18"]
[Round "9.29"]
[White "Kavalir, Jan"]
[Black "Novotny, Josef"]
[Result "1/2-1/2"]
[Annotator "NA"]
[ECO "C00"]
[WhiteElo "1992"]
[BlackElo "2033"]
[PlyCount "130"]
[EventDate "2024.07.16"]
[EventType "swiss"]
[EventCountry "CZE"]
[SourceTitle "playchess.com"]
[Source "ChessBase"]
[SourceQuality "1"]
[TimeControl "1200+10"]

1. e4 {[%emt 0:00:03]} e6 {[%emt 0:01:05]} 2. d3 {[%emt 0:00:02]} d6 {[%emt 0:00:03]} 3. g3 {[%emt 0:00:11]} Nc6 {[%emt 0:00:04]} 4. Bg2 {[%emt 0:00:04]} h6 {[%emt 0:00:06]} 5. Nc3 {[%emt 0:00:09]} Nf6 {[%emt 0:00:02]} 6. Nge2 {[%emt 0:00:29]} a6 {[%emt 0:00:08]} 7. O-O {[%emt 0:00:14]} e5 {[%emt 0:00:27]} 8. h3 {[%emt 0:00:29]} g5 {[%emt 0:00:33]} 9. d4 {[%emt 0:00:29]} Bg7 {[%emt 0:00:26]} 10. Be3 {[%emt 0:00:35]} Bd7 {[%emt 0:00:04]} 11. f4 {[%emt 0:00:25]} exf4 {[%emt 0:00:06]} 12. gxf4 {[%emt 0:00:02]} g4 {[%emt 0:00:18]} 13. f5 {[%emt 0:01:59]} Rg8 {[%emt 0:00:19]} 14. Kh2 {[%emt 0:00:25]} gxh3 {[%emt 0:00:43]} 15. Bxh3 {[%emt 0:00:11]} Nh7 {[%emt 0:00:03]} 16. Nd5 {[%emt 0:00:33]} Ne7 {[%emt 0:00:08]} 17. Nef4 {[%emt 0:01:06]} c6 {[%emt 0:00:10]} 18. Ne6 {[%emt 0:00:25]} cxd5 {[%emt 0:01:04]} 19. Nxd8 {[%emt 0:00:09]} Kxd8 {[%emt 0:00:03]} 20. Qd3 {[%emt 0:03:19]} Bb5 {[%emt 0:03:13]} 21. Qa3 {[%emt 0:00:08]} Bxf1 {[%emt 0:00:19]} 22. Qxd6+ {[%emt 0:00:20]} Ke8 {[%emt 0:00:01]} 23. Rxf1 {[%emt 0:00:27]} Rd8 {[%emt 0:00:02]} 24. Qb6 {[%emt 0:00:17]} dxe4 {[%emt 0:00:09]} 25. f6 {[%emt 0:01:46]} Nd5 {[%emt 0:00:04]} 26. Qxb7 {[%emt 0:00:23]} Nhxf6 {[%emt 0:00:04]} 27. Bc1 {[%emt 0:01:28]} Ne7 {[%emt 0:04:53]} 28. Qxa6 {[%emt 0:01:13]} Nfd5 {[%emt 0:01:09]} 29. c4 {[%emt 0:01:01]} Nc7 {[%emt 0:00:12]} 30. Qa4+ {[%emt 0:01:22]} Kf8 {[%emt 0:00:03]} 31. d5 {[%emt 0:00:36]} Be5+ {[%emt 0:00:05]} 32. Bf4 {[%emt 0:00:17]} Bxf4+ {[%emt 0:00:18]} 33. Rxf4 Ng6 {[%emt 0:00:18]} 34. Rxe4 {[%emt 0:00:36]} Kg7 {[%emt 0:00:05]} 35. Re7 {[%emt 0:00:31]} Nxe7 {[%emt 0:00:03]} 36. Qa7 {[%emt 0:00:31]} Ncxd5 {[%emt 0:00:25]} 37. cxd5 {[%emt 0:00:22]} Nxd5 {[%emt 0:00:02]} 38. Be6 {[%emt 0:00:41]} Rgf8 {[%emt 0:00:06]} 39. Bxd5 {[%emt 0:00:38]} Rxd5 {[%emt 0:00:02]} 40. b4 {[%emt 0:00:45]} Rc8 {[%emt 0:00:31]} 41. Qg1+ {[%emt 0:00:25]} Rg5 {[%emt 0:00:12]} 42. Qd4+ {[%emt 0:00:02]} Kh7 {[%emt 0:00:58]} 43. Qd3+ {[%emt 0:00:19]} Rg6 {[%emt 0:00:21]} 44. Qf5 {[%emt 0:00:11]} Rf8 {[%emt 0:00:54]} 45. a4 {[%emt 0:00:08]} Kg8 {[%emt 0:00:02]} 46. b5 {[%emt 0:00:08]} Rd8 {[%emt 0:00:14]} 47. a5 {[%emt 0:00:26]} Rd4 {[%emt 0:00:16]} 48. b6 {[%emt 0:00:58]} Rh4+ {[%emt 0:02:12]} 49. Qh3 {[%emt 0:00:02]} Rb4 {[%emt 0:00:20]} 50. Qc8+ {[%emt 0:00:19]} Kh7 {[%emt 0:00:06]} 51. Qf5 {[%emt 0:00:26]} Rh4+ {[%emt 0:00:07]} 52. Qh3 {[%emt 0:00:17]} Rb4 {[%emt 0:00:16]} 53. Qf5 {[%emt 0:00:04]} Rh4+ {[%emt 0:00:08]} 54. Qh3 {[%emt 0:00:01]} Rb4 {[%emt 0:00:16]} 55. Qf5 {[%emt 0:00:28]} Rh4+ {[%emt 0:00:11]} 56. Qh3 {[%emt 0:00:02]} Rb4 {[%emt 0:00:02]} 57. Qh5 {[%emt 0:00:18]} Rb2+ {[%emt 0:00:11]} 58. Kh3 {[%emt 0:00:05]} Rb3+ {[%emt 0:00:03]} 59. Kh2 {[%emt 0:00:03]} Rb2+ {[%emt 0:00:02]} 60. Kh3 {[%emt 0:00:02]} Rb3+ {[%emt 0:00:01]} 61. Kh2 {[%emt 0:00:01]} Rb2+ {[%emt 0:00:01]} 62. Kh3 {[%emt 0:00:02]} Rb3+ {[%emt 0:00:01]} 63. Kh2 {[%emt 0:00:31]} Rb2+ {[%emt 0:00:02]} 64. Kh1 {[%emt 0:00:02]} Rb1+ {[%emt 0:00:02]} 65. Kh2 {[%emt 0:00:01]} Rb2+ {[%emt 0:00:02]} 1/2-1/2

[Event "Czech Open Rapid G1 2024"]
[Site "Pardubice"]
[Date "2024.07.18"]
[Round "9.30"]
[White "Filindash, Nikita"]
[Black "Novotny, Dominik"]
[Result "1-0"]
[Annotator "NA RC"]
[ECO "D31"]
[WhiteElo "2007"]
[BlackElo "1921"]
[PlyCount "149"]
[EventDate "2024.07.16"]
[EventType "swiss"]
[EventCountry "CZE"]
[SourceTitle "playchess.com"]
[Source "ChessBase"]
[SourceQuality "1"]
[TimeControl "1200+10"]

1. d4 {[%emt 0:00:01]} d5 {[%emt 0:00:02]} 2. c4 {[%emt 0:00:01]} e6 {[%emt 0:00:02]} 3. Nc3 {[%emt 0:00:01]} a6 {[%emt 0:00:02]} 4. cxd5 {[%emt 0:00:04]} exd5 {[%emt 0:00:02]} 5. Qb3 {[%emt 0:00:03]} c5 {[%emt 0:00:06]} 6. Qxd5 {[%emt 0:00:15]} cxd4 {[%emt 0:00:20]} 7. Qxd8+ {[%emt 0:00:33]} Kxd8 {[%emt 0:00:02]} 8. Ne4 {[%emt 0:00:02]} Bf5 {[%emt 0:01:18]} 9. Ng3 {[%emt 0:00:16]} Be6 {[%emt 0:01:11]} 10. Nf3 {[%emt 0:00:43]} Nc6 {[%emt 0:00:12]} 11. e3 {[%emt 0:01:06]} Bb4+ {[%emt 0:00:38]} 12. Bd2 {[%emt 0:00:01]} dxe3 {[%emt 0:00:33]} 13. fxe3 {[%emt 0:00:08]} Nf6 {[%emt 0:00:48]} 14. O-O-O {[%emt 0:01:04]} Ke7 {[%emt 0:00:19]} 15. Kb1 {[%emt 0:01:05]} Rhd8 {[%emt 0:00:39]} 16. Nd4 {[%emt 0:02:01]} Bxd2 {[%emt 0:06:17]} 17. Rxd2 {[%emt 0:00:02]} Nxd4 {[%emt 0:01:06]} 18. exd4 {[%emt 0:00:01]} Rd7 {[%emt 0:00:43]} 19. Be2 {[%emt 0:00:07]} Rad8 {[%emt 0:00:06]} 20. Rhd1 {[%emt 0:00:01]} Nd5 {[%emt 0:00:47]} 21. Bf3 {[%emt 0:00:33]} g6 {[%emt 0:02:26]} 22. Bxd5 {[%emt 0:08:34]} Rxd5 {[%emt 0:00:06]} 23. h3 {[%emt 0:02:16]} Rg5 {[%emt 0:01:13]} 24. Nf1 {[%emt 0:00:08]} Bd5 {[%emt 0:00:23]} 25. Ne3 {[%emt 0:00:07]} Rg3 {[%emt 0:00:47]} 26. Re1 {[%emt 0:01:21]} Kf8 {[%emt 0:02:53]} 27. Nxd5 {[%emt 0:02:44]} Rxd5 {[%emt 0:00:02]} 28. Kc1 {[%emt 0:00:06]} f5 {[%emt 0:00:21]} 29. Kd1 {[%emt 0:00:46]} Kf7 {[%emt 0:00:20]} 30. Kc2 {[%emt 0:00:20]} f4 {[%emt 0:00:19]} 31. Kd1 {[%emt 0:00:35]} g5 {[%emt 0:00:19]} 32. Ree2 {[%emt 0:00:10]} h5 {[%emt 0:00:23]} 33. Ke1 {[%emt 0:00:02]} f3 {[%emt 0:00:31]} 34. Re3 {[%emt 0:00:14]} g4 {[%emt 0:00:12]} 35. hxg4 {[%emt 0:00:04]} hxg4 {[%emt 0:00:03]} 36. gxf3 {[%emt 0:00:09]} Rxf3 {[%emt 0:00:22]} 37. Rxf3+ {[%emt 0:00:01]} gxf3 {[%emt 0:00:01]} 38. Kf2 {[%emt 0:00:01]} Rf5 {[%emt 0:00:02]} 39. Rd3 {[%emt 0:00:03]} Ke6 {[%emt 0:00:30]} 40. Rxf3 {[%emt 0:00:06]} Rb5 {[%emt 0:00:03]} 41. Rb3 {[%emt 0:00:20]} Rf5+ {[%emt 0:00:04]} 42. Ke3 {[%emt 0:00:01]} Rf7 {[%emt 0:00:18]} 43. Ke4 {[%emt 0:00:02]} Rh7 {[%emt 0:00:05]} 44. Rb6+ {[%emt 0:00:04]} Kd7 {[%emt 0:00:04]} 45. a4 {[%emt 0:00:49]} Kc7 {[%emt 0:00:17]} 46. a5 {[%emt 0:00:10]} Rh4+ {[%emt 0:00:02]} 47. Kd3 {[%emt 0:00:02]} Rh1 {[%emt 0:00:25]} 48. b4 {[%emt 0:00:18]} Re1 {[%emt 0:00:09]} 49. Rh6 {[%emt 0:00:19]} Rb1 {[%emt 0:00:08]} 50. Kc4 {[%emt 0:00:04]} Rc1+ {[%emt 0:00:03]} 51. Kd5 {[%emt 0:00:01]} Rb1 {[%emt 0:00:04]} 52. Rh7+ {[%emt 0:00:01]} Kb8 {[%emt 0:00:12]} 53. Kc5 {[%emt 0:00:33]} Rc1+ {[%emt 0:00:02]} 54. Kd5 {[%emt 0:00:07]} Rb1 {[%emt 0:00:01]} 55. Rh8+ {[%emt 0:00:04]} Kc7 {[%emt 0:00:05]} 56. Rh7+ {[%emt 0:00:04]} Kb8 {[%emt 0:00:01]} 57. Kc4 {[%emt 0:00:00]} Rc1+ {[%emt 0:00:14]} 58. Kd3 {[%emt 0:00:00]} Rb1 {[%emt 0:00:04]} 59. Kc3 {[%emt 0:00:00]} Rc1+ {[%emt 0:00:04]} 60. Kb3 {[%emt 0:00:00]} Rd1 {[%emt 0:00:03]} 61. Rh4 {[%emt 0:00:07]} Kc7 {[%emt 0:00:05]} 62. Kc4 {[%emt 0:00:01]} Rc1+ {[%emt 0:00:02]} 63. Kd5 {[%emt 0:00:03]} Rb1 {[%emt 0:00:02]} 64. Rh7+ {[%emt 0:00:02]} Kb8 {[%emt 0:00:01]} 65. Ke6 {[%emt 0:01:38]} Rxb4 {[%emt 0:00:10]} 66. d5 {[%emt 0:00:01]} Re4+ {[%emt 0:00:40]} 67. Kf6 {[%emt 0:00:04]} Kc8 {[%emt 0:00:39]} 68. d6 {[%emt 0:00:06]} Ra4 {[%emt 0:00:42]} 69. Rc7+ {[%emt 0:00:21]} Kb8 {[%emt 0:00:13]} 70. Rc5 {[%emt 0:00:11]} b6 {[%emt 0:00:10]} 71. axb6 {[%emt 0:00:04]} Kb7 {[%emt 0:00:04]} 72. d7 {[%emt 0:00:05]} Rd4 {[%emt 0:00:06]} 73. Ke7 {[%emt 0:00:11]} Re4+ {[%emt 0:00:07]} 74. Kd6 {[%emt 0:00:10]} Rd4+ {[%emt 0:00:02]} 75. Rd5 {[%emt 0:00:04]} 1-0

[Event "Czech Open Rapid G1 2024"]
[Site "Pardubice"]
[Date "2024.07.18"]
[Round "9.31"]
[White "Moeller, Tom"]
[Black "Dorokhina, Elizaveta"]
[Result "1-0"]
[Annotator "NA RC"]
[ECO "D00"]
[WhiteElo "1842"]
[BlackElo "1962"]
[PlyCount "99"]
[EventDate "2024.07.16"]
[EventType "swiss"]
[EventCountry "CZE"]
[SourceTitle "playchess.com"]
[Source "ChessBase"]
[SourceQuality "1"]
[TimeControl "1200+10"]

1. d4 {[%emt 0:00:02]} e6 {[%emt 0:00:02]} 2. Nc3 {[%emt 0:00:01]} Nf6 {[%emt 0:00:04]} 3. Bf4 {[%emt 0:00:02]} d5 {[%emt 0:00:15]} 4. Nb5 {[%emt 0:00:01]} Na6 {[%emt 0:00:06]} 5. e3 {[%emt 0:00:02]} c6 {[%emt 0:00:21]} 6. Nc3 {[%emt 0:00:01]} Nc7 {[%emt 0:00:02]} 7. Nf3 {[%emt 0:00:09]} Bd6 {[%emt 0:00:06]} 8. Ne5 {[%emt 0:00:01]} O-O {[%emt 0:00:05]} 9. g4 {[%emt 0:00:13]} c5 {[%emt 0:00:14]} 10. g5 {[%emt 0:02:13]} Nfe8 {[%emt 0:00:23]} 11. Bd3 {[%emt 0:04:36]} Bxe5 {[%emt 0:01:53]} 12. dxe5 {[%emt 0:00:29]} d4 {[%emt 0:00:42]} 13. h4 {[%emt 0:03:01]} Nd5 {[%emt 0:00:27]} 14. Qh5 {[%emt 0:04:12]} g6 {[%emt 0:00:16]} 15. Qh6 {[%emt 0:00:02]} dxc3 {[%emt 0:04:08]} 16. h5 {[%emt 0:01:05]} Qc7 {[%emt 0:00:16]} 17. hxg6 {[%emt 0:00:59]} fxg6 {[%emt 0:00:04]} 18. Bxg6 {[%emt 0:00:04]} Qg7 {[%emt 0:01:41]} 19. Bxh7+ {[%emt 0:01:06]} Kf7 {[%emt 0:00:40]} 20. g6+ {[%emt 0:00:37]} Ke7 {[%emt 0:00:02]} 21. Bg5+ {[%emt 0:00:13]} Kd7 {[%emt 0:00:21]} 22. Qxg7+ {[%emt 0:00:07]} Nxg7 {[%emt 0:00:09]} 23. Bh6 {[%emt 0:00:01]} cxb2 {[%emt 0:00:55]} 24. Rb1 {[%emt 0:00:01]} Kc7 {[%emt 0:00:26]} 25. Bxg7 {[%emt 0:00:06]} Rd8 {[%emt 0:00:02]} 26. Rxb2 {[%emt 0:00:36]} Nc3 {[%emt 0:01:15]} 27. O-O {[%emt 0:00:14]} Bd7 {[%emt 0:00:14]} 28. Bf6 {[%emt 0:00:57]} Re8 {[%emt 0:00:01]} 29. g7 {[%emt 0:00:28]} Bb5 {[%emt 0:00:18]} 30. Re1 {[%emt 0:00:26]} Bc6 {[%emt 0:00:04]} 31. Kh2 {[%emt 0:00:11]} Be4 {[%emt 0:01:36]} 32. Bxe4 {[%emt 0:01:10]} Nxe4 {[%emt 0:00:02]} 33. f3 {[%emt 0:00:04]} Nd2 {[%emt 0:00:23]} 34. Kg3 {[%emt 0:00:32]} Nc4 {[%emt 0:00:03]} 35. Rb3 {[%emt 0:00:09]} Kc6 {[%emt 0:00:05]} 36. Rd3 {[%emt 0:00:06]} Rg8 {[%emt 0:00:33]} 37. Red1 {[%emt 0:00:15]} b5 {[%emt 0:01:48]} 38. Kf4 {[%emt 0:00:34]} Nb6 {[%emt 0:00:17]} 39. Rd6+ {[%emt 0:00:09]} Kc7 {[%emt 0:00:06]} 40. Rxe6 {[%emt 0:00:01]} a5 {[%emt 0:00:13]} 41. Re7+ {[%emt 0:00:02]} Kc8 {[%emt 0:00:06]} 42. Rd6 {[%emt 0:00:01]} Ra6 {[%emt 0:00:16]} 43. Rc6+ {[%emt 0:00:04]} Kb8 {[%emt 0:00:06]} 44. Ree6 {[%emt 0:00:02]} Nd5+ {[%emt 0:00:17]} 45. Ke4 {[%emt 0:00:03]} Nc3+ {[%emt 0:00:30]} 46. Kf5 {[%emt 0:00:15]} Rxc6 {[%emt 0:00:27]} 47. Rxc6 {[%emt 0:00:02]} c4 {[%emt 0:00:07]} 48. Kg6 {[%emt 0:00:07]} Kb7 {[%emt 0:00:05]} 49. Rd6 {[%emt 0:00:24]} Nxa2 {[%emt 0:00:08]} 50. Kf7 {[%emt 0:00:08]} 1-0

[Event "Czech Open Rapid G1 2024"]
[Site "Pardubice"]
[Date "2024.07.18"]
[Round "9.32"]
[White "Rous, Dominik"]
[Black "Direk, Oguzhan"]
[Result "0-1"]
[Annotator "NA RC"]
[ECO "D02"]
[WhiteElo "1719"]
[BlackElo "1753"]
[PlyCount "116"]
[EventDate "2024.07.16"]
[EventType "swiss"]
[EventCountry "CZE"]
[SourceTitle "playchess.com"]
[Source "ChessBase"]
[SourceQuality "1"]
[TimeControl "1200+10"]

1. d4 {[%emt 0:00:56]} d5 {[%emt 0:00:01]} 2. Nf3 {[%emt 0:00:01]} c6 {[%emt 0:00:01]} 3. Bf4 {[%emt 0:00:01]} Qb6 {[%emt 0:00:02]} 4. Qc1 {[%emt 0:00:02]} Bf5 {[%emt 0:00:03]} 5. c3 {[%emt 0:00:01]} Nf6 {[%emt 0:00:01]} 6. Nbd2 {[%emt 0:00:02]} Nbd7 {[%emt 0:00:02]} 7. e3 {[%emt 0:00:02]} e6 {[%emt 0:00:06]} 8. h3 {[%emt 0:00:02]} Be7 {[%emt 0:00:13]} 9. Nh4 {[%emt 0:00:04]} O-O {[%emt 0:00:02]} 10. Nxf5 {[%emt 0:00:08]} exf5 {[%emt 0:00:02]} 11. Bd3 {[%emt 0:00:27]} Ne4 {[%emt 0:00:10]} 12. O-O {[%emt 0:00:26]} g6 {[%emt 0:00:10]} 13. Re1 {[%emt 0:00:42]} Rfe8 {[%emt 0:00:27]} 14. c4 {[%emt 0:00:37]} Bb4 {[%emt 0:01:14]} 15. Bxe4 {[%emt 0:00:19]} fxe4 {[%emt 0:00:51]} 16. Rd1 {[%emt 0:00:24]} Qd8 {[%emt 0:01:43]} 17. a3 {[%emt 0:01:43]} Be7 {[%emt 0:00:15]} 18. b4 {[%emt 0:01:49]} Rf8 {[%emt 0:00:23]} 19. cxd5 {[%emt 0:00:50]} cxd5 {[%emt 0:00:04]} 20. Qb2 {[%emt 0:00:01]} Rc8 {[%emt 0:00:15]} 21. Rdc1 {[%emt 0:00:04]} Nb6 {[%emt 0:00:02]} 22. Rxc8 {[%emt 0:00:16]} Qxc8 {[%emt 0:00:05]} 23. Rc1 {[%emt 0:00:01]} Qd8 {[%emt 0:02:58]} 24. Rc7 {[%emt 0:02:14]} g5 {[%emt 0:00:44]} 25. Bh2 {[%emt 0:01:33]} f5 {[%emt 0:00:04]} 26. Be5 {[%emt 0:00:11]} f4 {[%emt 0:02:50]} 27. Qb3 {[%emt 0:00:45]} f3 {[%emt 0:00:33]} 28. Bg3 {[%emt 0:02:52]} Bd6 {[%emt 0:00:28]} 29. Bxd6 {[%emt 0:01:06]} Qxd6 {[%emt 0:00:01]} 30. Rxb7 {[%emt 0:02:35]} fxg2 {[%emt 0:00:19]} 31. Nxe4 {[%emt 0:00:38]} Qe6 {[%emt 0:00:56]} 32. Nxg5 {[%emt 0:00:28]} Qf5 {[%emt 0:00:04]} 33. f4 {[%emt 0:00:52]} h6 {[%emt 0:00:14]} 34. Nf3 {[%emt 0:00:26]} Qxh3 {[%emt 0:00:10]} 35. Nh2 {[%emt 0:00:04]} Rc8 {[%emt 0:00:21]} 36. Qb1 {[%emt 0:00:02]} Qxe3+ {[%emt 0:01:31]} 37. Kxg2 {[%emt 0:00:03]} Qd2+ {[%emt 0:00:01]} 38. Kg3 {[%emt 0:01:10]} Rc2 {[%emt 0:00:37]} 39. Qg1 {[%emt 0:00:06]} Kf8 {[%emt 0:00:46]} 40. Nf3 {[%emt 0:00:22]} Rc3 {[%emt 0:00:54]} 41. Qh1 {[%emt 0:00:15]} Rxf3+ {[%emt 0:01:32]} 42. Qxf3 {[%emt 0:01:48]} Nc4 {[%emt 0:00:01]} 43. Rb8+ {[%emt 0:00:32]} Ke7 {[%emt 0:00:05]} 44. Qxd5 {[%emt 0:00:15]} Qe1+ {[%emt 0:00:16]} 45. Kh2 {[%emt 0:00:10]} Qf2+ {[%emt 0:00:10]} 46. Kh3 {[%emt 0:00:07]} Qe3+ {[%emt 0:00:16]} 47. Kg4 {[%emt 0:00:12]} Qe2+ {[%emt 0:00:06]} 48. Qf3 {[%emt 0:00:13]} Ne3+ {[%emt 0:00:13]} 49. Kg3 {[%emt 0:00:01]} Nf5+ {[%emt 0:00:06]} 50. Kg4 {[%emt 0:00:04]} h5+ {[%emt 0:00:05]} 51. Kxf5 {[%emt 0:00:18]} Qxf3 {[%emt 0:00:03]} 52. b5 {[%emt 0:00:18]} Qd5+ {[%emt 0:00:05]} 53. Kg6 {[%emt 0:00:02]} Qd6+ {[%emt 0:00:01]} 54. Kxh5 {[%emt 0:00:03]} Qxb8 {[%emt 0:00:01]} 55. f5 {[%emt 0:00:01]} Qxb5 {[%emt 0:00:02]} 56. a4 {[%emt 0:00:01]} Qxf5+ {[%emt 0:00:01]} 57. Kh6 {[%emt 0:00:02]} Kf7 {[%emt 0:00:02]} 58. d5 {[%emt 0:00:01]} Qg6# {[%emt 0:00:02]} 0-1

[Event "Czech Open Rapid G1 2024"]
[Site "Pardubice"]
[Date "2024.07.18"]
[Round "9.33"]
[White "Jun, Rudolf"]
[Black "Pejrimovska, Viola Ruby"]
[Result "1-0"]
[Annotator "RC"]
[ECO "B55"]
[WhiteElo "2232"]
[BlackElo "1780"]
[PlyCount "33"]
[EventDate "2024.07.16"]
[EventType "swiss"]
[EventCountry "CZE"]
[SourceTitle "playchess.com"]
[Source "ChessBase"]
[SourceQuality "1"]
[TimeControl "1200+10"]

1. e4 {[%emt 0:00:01]} c5 {[%emt 0:00:01]} 2. Nf3 {[%emt 0:00:03]} d6 {[%emt 0:00:06]} 3. d4 {[%emt 0:00:03]} cxd4 {[%emt 0:00:02]} 4. Nxd4 {[%emt 0:00:03]} Nf6 {[%emt 0:00:02]} 5. f3 {[%emt 0:00:06]} a6 {[%emt 0:00:11]} 6. c4 {[%emt 0:00:04]} e5 {[%emt 0:00:31]} 7. Nc2 {[%emt 0:00:01]} Nxe4 {[%emt 0:00:43]} 8. fxe4 {[%emt 0:00:05]} Qh4+ {[%emt 0:00:05]} 9. Kd2 {[%emt 0:00:13]} Qxe4 {[%emt 0:01:18]} 10. Qf3 {[%emt 0:00:06]} Qg6 {[%emt 0:00:52]} 11. Nc3 {[%emt 0:00:19]} Be7 {[%emt 0:00:19]} 12. Nd5 {[%emt 0:00:53]} Bg5+ {[%emt 0:00:04]} 13. Kc3 {[%emt 0:00:03]} O-O {[%emt 0:00:42]} 14. h4 {[%emt 0:00:27]} e4 15. Bxg5 {[%emt 0:00:38]} Nc6 {[%emt 0:05:17]} 16. Qg3 {[%emt 0:00:30]} b5 {[%emt 0:00:41]} 17. Ncb4 {[%emt 0:00:46]} 1-0

[Event "Czech Open Rapid G1 2024"]
[Site "Pardubice"]
[Date "2024.07.18"]
[Round "9.34"]
[White "Gschwendtner, Stanislav"]
[Black "Ret, Adam Josef"]
[Result "0-1"]
[Annotator "NA RC"]
[ECO "A37"]
[WhiteElo "2011"]
[BlackElo "2085"]
[PlyCount "102"]
[EventDate "2024.07.16"]
[EventType "swiss"]
[EventCountry "CZE"]
[SourceTitle "playchess.com"]
[Source "ChessBase"]
[SourceQuality "1"]
[TimeControl "1200+10"]

1. c4 {[%emt 0:00:02]} c5 {[%emt 0:00:09]} 2. g3 {[%emt 0:00:03]} g6 {[%emt 0:00:02]} 3. Bg2 {[%emt 0:00:04]} Bg7 {[%emt 0:00:01]} 4. Nc3 {[%emt 0:00:05]} Nc6 {[%emt 0:00:05]} 5. Nf3 {[%emt 0:00:02]} e5 {[%emt 0:00:05]} 6. O-O {[%emt 0:00:05]} Nge7 {[%emt 0:00:16]} 7. d3 {[%emt 0:00:09]} O-O {[%emt 0:00:09]} 8. a3 {[%emt 0:00:03]} a6 {[%emt 0:00:52]} 9. Ne1 {[%emt 0:00:12]} Rb8 {[%emt 0:00:30]} 10. Rb1 {[%emt 0:00:15]} b5 {[%emt 0:00:06]} 11. cxb5 {[%emt 0:00:06]} axb5 {[%emt 0:00:01]} 12. b4 {[%emt 0:00:03]} cxb4 {[%emt 0:00:13]} 13. axb4 {[%emt 0:00:01]} d5 {[%emt 0:00:04]} 14. Bg5 {[%emt 0:00:32]} f6 {[%emt 0:00:55]} 15. Bd2 {[%emt 0:00:00]} Qd6 {[%emt 0:00:29]} 16. Nc2 {[%emt 0:00:15]} Be6 {[%emt 0:00:58]} 17. f4 {[%emt 0:00:26]} Qc7 {[%emt 0:01:53]} 18. e4 {[%emt 0:02:38]} d4 {[%emt 0:00:37]} 19. Nd5 {[%emt 0:00:04]} Qd6 {[%emt 0:00:16]} 20. Nxe7+ {[%emt 0:00:49]} Nxe7 {[%emt 0:00:12]} 21. Na3 {[%emt 0:00:31]} Qd7 {[%emt 0:00:43]} 22. Qe2 {[%emt 0:00:23]} Ra8 {[%emt 0:00:05]} 23. Ra1 {[%emt 0:00:10]} Ra4 {[%emt 0:00:53]} 24. fxe5 {[%emt 0:00:38]} fxe5 {[%emt 0:00:17]} 25. Rxf8+ {[%emt 0:00:09]} Bxf8 {[%emt 0:00:06]} 26. Qd1 {[%emt 0:01:22]} Qa7 {[%emt 0:00:51]} 27. Nc2 {[%emt 0:00:39]} Bb3 {[%emt 0:00:24]} 28. Rb1 {[%emt 0:00:24]} Be6 {[%emt 0:00:55]} 29. Ra1 {[%emt 0:00:36]} Nc6 {[%emt 0:01:26]} 30. Qb1 {[%emt 0:00:35]} Rxa1 {[%emt 0:01:17]} 31. Nxa1 {[%emt 0:00:49]} Qa3 {[%emt 0:00:09]} 32. Bf1 {[%emt 0:00:12]} Nxb4 {[%emt 0:00:31]} 33. Nc2 {[%emt 0:00:33]} Qa2 {[%emt 0:01:11]} 34. Qxa2 {[%emt 0:00:25]} Nxa2 {[%emt 0:00:01]} 35. Ba5 {[%emt 0:00:51]} b4 {[%emt 0:00:20]} 36. Bb6 {[%emt 0:02:22]} b3 {[%emt 0:00:23]} 37. Nxd4 {[%emt 0:00:32]} b2 {[%emt 0:00:24]} 38. Nxe6 {[%emt 0:00:08]} b1=Q {[%emt 0:00:11]} 39. Bf2 {[%emt 0:00:28]} Nc1 {[%emt 0:02:47]} 40. Ng5 {[%emt 0:03:44]} Nxd3 {[%emt 0:00:07]} 41. Be3 {[%emt 0:00:52]} Bc5 {[%emt 0:00:10]} 42. Bxc5 {[%emt 0:00:06]} Nxc5 {[%emt 0:00:02]} 43. Kg2 Nxe4 {[%emt 0:00:11]} 44. Bc4+ {[%emt 0:00:42]} Kg7 {[%emt 0:00:03]} 45. Ne6+ {[%emt 0:00:39]} Kf6 {[%emt 0:00:03]} 46. Kh3 {[%emt 0:00:27]} Ng5+ {[%emt 0:00:03]} 47. Nxg5 {[%emt 0:00:04]} Kxg5 {[%emt 0:00:01]} 48. Be2 {[%emt 0:00:11]} Qf5+ {[%emt 0:00:16]} 49. g4 {[%emt 0:00:08]} Qe4 {[%emt 0:00:15]} 50. Kg3 {[%emt 0:01:20]} Qxe2 {[%emt 0:00:04]} 51. h4+ {[%emt 0:00:01]} Kf6 {[%emt 0:00:02]} 0-1